bitfinex-derivatives/quotes_SOLF0:USTF0_20250714
["timestamp","ask_amount","ask_price","bid_price","bid_amount"]
[1752479206361,3.17022047,166.71,166.65,3.48]
[1752479206563,3.4,166.7,166.65,3.48]
[1752479206754,3.17022047,166.71,166.65,3.48]
[1752479206956,3.4,166.7,166.65,3.48]
[1752479207162,3.4,166.68,166.66,3.48]
[1752479207362,3.4,166.67,166.66,3.48]
[1752479207860,3.4,166.68,166.67,3.48]
[1752479208062,3.4,166.68,166.65,3.48]
[1752479208262,3.17022047,166.67,166.6,3.17022047]
[1752479208459,3.4,166.65,166.64,3.48]
[1752479208656,6.57022047,166.65,166.58,8.12299827]
[1752479208860,3.4,166.63,166.59,3.48]
[1752479209061,6.57022047,166.63,166.61,3.48]
[1752479209264,6.57022047,166.63,166.57,3.48]
[1752479209561,3.4,166.62,166.61,9.4806]
[1752479210262,3.17022047,166.63,166.61,3.48]
[1752479210462,6.57022047,166.63,166.62,3.48]
[1752479211261,12.57012047,166.63,166.6,3.48]
[1752479211461,3.4,166.62,166.6,3.48]
[1752479211656,3.4,166.62,166.59,6.0011]
[1752479211862,3.4,166.61,166.6,3.48]
[1752479212160,3.4,166.61,166.56,3.48]
[1752479212365,6.57022047,166.61,166.56,3.48]
[1752479212962,6.57022047,166.64,166.56,3.48]
[1752479213162,3.4,166.63,166.56,3.48]
[1752479213359,3.4,166.62,166.59,3.48]
[1752479213559,3.4,166.61,166.59,3.48]
[1752479213761,3.17022047,166.62,166.59,3.48]
[1752479213965,3.4,166.61,166.59,3.48]
[1752479214269,3.4,166.61,166.6,3.48]
[1752479215869,3.4,166.61,166.6,9.481]
[1752479216166,6.57022047,166.62,166.61,3.48]
[1752479216968,3.17022047,166.62,166.61,9.4806]
[1752479217664,3.17022047,166.64,166.62,5.9999]
[1752479217868,3.4,166.64,166.63,3.48]
[1752479218169,9.3995,166.64,166.61,3.48]
[1752479218362,180.8,166.67,166.62,3.48]
[1752479218363,6.57022047,166.63,166.62,3.48]
[1752479218563,3.4,166.62,166.6,9.4807]
[1752479218765,3.4,166.62,166.61,3.48]
[1752479218972,6.57022047,166.61,166.6,3.48]
[1752479219763,6.57022047,166.61,166.59,6.0011]
[1752479219968,3.17022047,166.61,166.58,6.0017]
[1752479220165,3.4,166.6,166.59,3.48]
[1752479220770,6.57022047,166.61,166.6,3.48]
[1752479220962,3.4,166.6,166.56,3.48]
[1752479221166,3.4,166.6,166.58,3.48]
[1752479221371,3.4,166.6,166.59,3.48]
[1752479221571,3.4,166.6,166.57,3.48]
[1752479221775,3.4,166.59,166.58,3.48]
[1752479222268,9.17092047,166.61,166.58,9.4817]
[1752479222574,3.4,166.6,166.59,3.48]
[1752479223579,3.17022047,166.63,166.54,3.17022047]
[1752479223879,3.4,166.66,166.6,3.48]
[1752479224269,9.399,166.66,166.62,6.0001]
[1752479224469,3.4,166.65,166.64,3.48]
[1752479225276,9.16942047,166.65,166.62,6.0001]
[1752479225471,3.4,166.64,166.63,3.48]
[1752479225676,3.4,166.64,166.58,3.48]
[1752479225876,6.57022047,166.62,166.58,3.48]
[1752479226081,3.49,166.61,166.6,3.49]
[1752479226478,9.4906,166.61,166.6,3.49]
[1752479226679,3.49,166.61,166.6,3.49]
[1752479227779,3.17022047,166.62,166.6,3.49]
[1752479227984,6.66022047,166.62,166.61,3.49]
[1752479228584,12.66062047,166.62,166.61,3.49]
[1752479228979,12.66062047,166.62,166.58,6.0016]
[1752479229180,3.49,166.61,166.52,4.9527778]
[1752479229379,3.49,166.6,166.58,3.49]
[1752479229575,3.49,166.6,166.59,3.49]
[1752479230488,6.0007,166.61,166.59,3.49]
[1752479230787,9.4907,166.61,166.6,3.49]
[1752479231188,3.49,166.61,166.52,3.49]
[1752479231385,6.66022047,166.59,166.52,3.49]
[1752479231588,3.17022047,166.57,166.52,3.49]
[1752479231887,3.17022047,166.59,166.52,3.49]
[1752479232486,6.66022047,166.59,166.52,3.49]
[1752479232692,3.49,166.58,166.52,3.49]
[1752479232884,9.4919,166.58,166.52,3.49]
[1752479233393,3.49,166.57,166.55,3.49]
[1752479233591,3.49,166.57,166.51,3.49]
[1752479233986,9.4921,166.57,166.53,3.49]
[1752479234195,6.66022047,166.59,166.53,3.49]
[1752479234391,12.66162047,166.59,166.55,6.0025]
[1752479234586,12.66162047,166.59,166.56,3.49]
[1752479234892,12.66162047,166.59,166.51,3.49]
[1752479235188,3.17022047,166.54,166.5,3.49]
[1752479235492,6.66022047,166.56,166.53,6.0032]
[1752479235687,6.66022047,166.56,166.48,3.17022047]
[1752479235892,6.66022047,166.56,166.42,528.43642617]
[1752479235893,3.49,166.55,166.53,3.49]
[1752479236096,3.49,166.54,166.53,3.49]
[1752479236391,6.66022047,166.54,166.47,3.49]
[1752479236588,3.17022047,166.54,166.49,6.0046]
[1752479236792,9.4938,166.53,166.5,3.49]
[1752479236986,9.4938,166.53,166.49,6.0047]
[1752479237192,6.0036,166.53,166.5,3.49]
[1752479237383,6.0036,166.53,166.43,4.9527778]
[1752479237384,6.66022047,166.54,166.46,3.17022047]
[1752479237588,6.66022047,166.54,166.5,3.49]
[1752479237788,3.49,166.53,166.5,3.49]
[1752479238193,3.49,166.53,166.51,3.49]
[1752479238393,3.49,166.53,166.47,3.49]
[1752479238592,3.49,166.51,166.48,6.005]
[1752479238788,9.17432047,166.52,166.44,3.17022047]
[1752479238789,3.49,166.5,166.44,3.17022047]
[1752479239092,3.49,166.48,166.46,3.49]
[1752479239299,3.49,166.48,166.47,3.49]
[1752479240490,6.66022047,166.48,166.39,3.49]
[1752479240699,3.49,166.47,166.37,4.97935785]
[1752479240896,3.49,166.47,166.39,3.17022047]
[1752479241093,3.49,166.46,166.45,3.49]
[1752479241790,6.66022047,166.48,166.45,3.49]
[1752479241994,3.49,166.47,166.45,9.4964]
[1752479242195,3.49,166.47,166.46,3.49]
[1752479242993,3.49,166.47,166.44,9.4967]
[1752479243195,3.49,166.47,166.36,180.48]
[1752479243401,3.17022047,166.48,166.45,3.49]
[1752479243592,3.49,166.47,166.45,3.49]
[1752479243798,9.17582047,166.48,166.45,3.49]
[1752479243998,3.49,166.47,166.4,3.49]
[1752479244198,3.17022047,166.56,166.42,3.49]
[1752479244398,3.49,166.5,166.49,3.49]
[1752479244602,3.49,166.5,166.43,3.17022047]
[1752479244791,3.49,166.5,166.44,3.49]
[1752479245289,3.49,166.47,166.44,3.49]
[1752479245490,3.17022047,166.49,166.44,6.0066]
[1752479245698,3.49,166.47,166.45,3.49]
[1752479246091,3.49,166.46,166.45,3.49]
[1752479246491,3.49,166.47,166.46,3.49]
[1752479246702,3.49,166.48,166.47,3.49]
[1752479246904,3.49,166.47,166.46,3.49]
[1752479247096,3.49,166.46,166.45,3.49]
[1752479247295,3.49,166.45,166.44,3.49]
[1752479247696,3.49,166.46,166.45,3.49]
[1752479248695,3.17022047,166.47,166.45,3.49]
[1752479248895,3.49,166.45,166.34,524.66506235]
[1752479249105,3.49,166.44,166.43,3.49]
[1752479249899,3.49,166.44,166.36,3.17022047]
[1752479250203,3.17022047,166.43,166.39,3.49]
[1752479250403,6.66022047,166.43,166.4,6.0078]
[1752479250706,3.49,166.42,166.36,3.49]
[1752479250894,3.17022047,166.43,166.36,3.49]
[1752479251404,3.49,166.44,166.37,3.17022047]
[1752479251600,3.49,166.44,166.38,3.49]
[1752479251801,9.4968,166.44,166.38,3.49]
[1752479251999,6.0068,166.44,166.38,3.49]
[1752479252303,3.49,166.42,166.38,3.49]
[1752479252506,3.17022047,166.45,166.38,3.49]
[1752479252700,3.49,166.44,166.38,3.49]
[1752479252899,9.4968,166.44,166.38,3.49]
[1752479253102,3.49,166.5,166.42,3.49]
[1752479253307,3.49,166.48,166.42,3.49]
[1752479253900,3.49,166.48,166.46,6.0058]
[1752479254102,3.49,166.48,166.47,3.49]
[1752479254406,3.17022047,166.49,166.42,3.49]
[1752479254602,6.66022047,166.49,166.47,3.49]
[1752479254809,6.66022047,166.49,166.48,3.49]
[1752479255104,3.49,166.5,166.49,3.49]
[1752479256903,522.07022047,166.51,166.49,3.49]
[1752479257101,522.48,166.51,166.5,3.65]
[1752479257405,518.9,166.51,166.5,3.65]
[1752479257601,3.58,166.53,166.5,3.65]
[1752479257804,183.9,166.56,166.5,3.65]
[1752479258003,3.58,166.55,166.5,3.65]
[1752479258408,180.32,166.56,166.5,3.65]
[1752479258611,180.32,166.56,166.53,6.0032]
[1752479258806,183.9,166.56,166.54,3.65]
[1752479259111,183.9,166.56,166.53,6.0032]
[1752479259306,3.58,166.55,166.54,3.65]
[1752479260710,3.58,166.55,166.54,9.6531]
[1752479260915,3.58,166.58,166.52,3.65]
[1752479261214,9.582,166.58,166.52,3.65]
[1752479261412,3.58,166.57,166.55,3.65]
[1752479262015,3.58,166.57,166.56,3.65]
[1752479262811,3.17022047,166.58,166.55,6.0027]
[1752479263007,3.58,166.55,166.52,3.65]
[1752479263314,12.75292047,166.56,166.53,9.6534]
[1752479263516,3.58,166.55,166.54,3.65]
[1752479264015,9.5828,166.55,166.54,3.65]
[1752479264309,3.58,166.55,166.54,3.65]
[1752479264818,3.58,166.55,166.49,3.65]
[1752479265017,3.17022047,166.52,166.45,3.65]
[1752479265313,183.37022047,166.54,166.51,3.65]
[1752479265514,3.58,166.52,166.51,3.65]
[1752479265909,183.37022047,166.54,166.45,3.17022047]
[1752479266109,518.98,166.59,166.4,15.18632047]
[1752479266110,6.75022047,166.56,166.48,3.65]
[1752479266312,192.91292047,166.56,166.48,3.65]
[1752479266614,186.91022047,166.56,166.48,3.65]
[1752479267515,6.0028,166.55,166.51,6.0039]
[1752479267816,3.58,166.55,166.52,3.65]
[1752479268019,3.58,166.55,166.52,9.6538]
[1752479268215,189.33282047,166.56,166.53,3.65]
[1752479268514,192.91282047,166.56,166.53,3.65]
[1752479269116,189.33282047,166.56,166.49,3.17022047]
[1752479269418,183.33022047,166.56,166.54,3.65]
[1752479269619,183.33022047,166.56,166.5,3.65]
[1752479269912,189.33272047,166.56,166.5,3.65]
[1752479270313,189.33272047,166.56,166.52,6.0036]
[1752479270514,9.5828,166.55,166.54,3.65]
[1752479271110,6.0042,166.52,166.5,3.65]
[1752479271411,186.50044094,166.56,166.48,9.6552]
[1752479271412,3.58,166.5,166.48,9.6552]
[1752479271619,3.58,166.5,166.49,3.65]
[1752479271919,3.58,166.5,166.42,3.17022047]
[1752479272217,3.17022047,166.49,166.43,3.65]
[1752479272618,186.0844,166.51,166.42,3.17022047]
[1752479272619,183.25022047,166.51,166.5,3.65]
[1752479272823,180.08,166.51,166.5,3.65]
[1752479273120,180.08,166.51,166.5,9.6546]
[1752479273310,180.08,166.51,166.5,3.65]
[1752479274719,186.83022047,166.51,166.5,3.65]
[1752479274915,186.83022047,166.51,166.48,9.6552]
[1752479275120,3.58,166.5,166.49,3.65]
[1752479275520,183.25022047,166.51,166.49,3.65]
[1752479275821,183.25022047,166.51,166.44,3.65]
[1752479276210,183.25022047,166.51,166.49,6.0047]
[1752479276412,183.25022047,166.51,166.5,3.65]
[1752479276718,186.83022047,166.51,166.5,3.65]
[1752479280419,192.83442047,166.51,166.5,3.65]
[1752479280618,3.58,166.5,166.48,3.65]
[1752479280827,3.17022047,166.49,166.44,3.65]
[1752479281019,3.58,166.47,166.46,3.65]
[1752479281423,6.75022047,166.49,166.46,3.65]
[1752479281723,3.58,166.48,166.47,3.65]
[1752479282814,3.58,166.48,166.47,9.6556]
[1752479283226,3.58,166.48,166.47,3.65]
[1752479286518,9.5853,166.48,166.47,3.65]
[1752479286723,3.35,166.48,166.42,3.64]
[1752479286920,3.35,166.46,166.42,3.64]
[1752479287125,3.17022047,166.47,166.45,3.64]
[1752479287318,3.17022047,166.47,166.39,3.17022047]
[1752479287523,6.52022047,166.47,166.46,3.64]
[1752479289031,6.52022047,166.47,166.44,6.0066]
[1752479289232,3.35,166.46,166.4,3.64]
[1752479289627,3.35,166.45,166.42,6.0071]
[1752479289832,3.35,166.44,166.43,3.64]
[1752479291733,3.17022047,166.47,166.42,6.0071]
[1752479292035,3.35,166.45,166.44,3.64]
[1752479293231,3.35,166.45,166.44,9.6467]
[1752479293437,3.35,166.48,166.44,3.64]
[1752479293936,3.35,166.48,166.47,3.64]
[1752479294737,9.3553,166.48,166.47,3.64]
[1752479294930,3.35,166.48,166.47,3.64]
[1752479295637,3.17022047,166.49,166.47,6.0056]
[1752479295936,6.52022047,166.49,166.48,3.64]
[1752479296131,3.17022047,166.49,166.48,3.64]
[1752479296739,6.0048,166.5,166.48,3.64]
[1752479296929,186.34022047,166.51,166.48,6.0051]
[1752479297133,6.52022047,166.51,166.5,3.64]
[1752479297733,3.35,166.52,166.51,3.64]
[1752479298039,3.35,166.51,166.5,3.64]
[1752479298245,3.35,166.52,166.51,3.64]
[1752479299442,3.35,166.52,166.48,3.64]
[1752479299640,3.17022047,166.5,166.48,3.64]
[1752479300143,6.52022047,166.5,166.49,3.64]
[1752479300448,12.52482047,166.5,166.49,3.64]
[1752479300633,6.52022047,166.5,166.49,3.64]
[1752479300839,179.72,166.54,166.49,3.64]
[1752479301036,3.35,166.53,166.49,3.64]
[1752479301344,179.72,166.54,166.49,3.64]
[1752479301543,3.35,166.55,166.49,3.64]
[1752479301747,3.35,166.55,166.52,6.0036]
[1752479302141,3.35,166.55,166.54,3.64]
[1752479302738,3.17022047,166.64,166.55,3.64]
[1752479302739,3.35,166.6,166.55,3.64]
[1752479302944,3.35,166.62,166.57,3.64]
[1752479303536,3.35,166.62,166.59,6.0013]
[1752479303846,3.35,166.62,166.61,3.64]
[1752479304046,9.3502,166.62,166.61,3.64]
[1752479304247,3.35,166.62,166.61,3.64]
[1752479306046,6.0001,166.63,166.61,3.64]
[1752479306245,9.3501,166.63,166.62,3.64]
[1752479306846,3.35,166.63,166.62,3.64]
[1752479310244,179.68,166.64,166.62,3.64]
[1752479311349,179.68,166.64,166.62,9.6401]
[1752479311547,179.68,166.64,166.63,3.64]
[1752479311749,522.31,166.68,166.63,3.64]
[1752479311949,707.8081,166.68,166.63,9.6396]
[1752479312150,3.35,166.67,166.64,3.64]
[1752479313351,704.4581,166.68,166.65,3.64]
[1752479313550,707.8081,166.68,166.65,3.64]
[1752479314555,701.81,166.68,166.65,3.64]
[1752479314758,698.46,166.68,166.65,3.64]
[1752479314952,3.35,166.7,166.65,3.64]
[1752479315254,179.44,166.69,166.65,3.64]
[1752479315649,3.35,166.7,166.65,3.64]
[1752479316250,3.17022047,166.75,166.67,3.46]
[1752479316458,182.95,166.74,166.69,3.46]
[1752479317553,179.38,166.74,166.72,3.46]
[1752479317955,182.95,166.74,166.73,3.46]
[1752479319054,179.38,166.74,166.72,3.46]
[1752479319952,179.38,166.74,166.73,9.4563]
[1752479320550,179.38,166.74,166.73,3.46]
[1752479321547,3.57,166.76,166.73,3.46]
[1752479322651,179.26,166.77,166.74,5.9957]
[1752479322958,179.26,166.77,166.75,3.46]
[1752479323660,182.83,166.77,166.76,3.46]
[1752479324453,179.26,166.77,166.7,3.46]
[1752479324655,3.57,166.75,166.68,3.46]
[1752479324860,3.57,166.75,166.72,3.46]
[1752479325048,12.73572047,166.76,166.72,3.46]
[1752479325255,3.17022047,166.76,166.69,3.17022047]
[1752479325551,3.17022047,166.72,166.67,3.46]
[1752479325756,3.57,166.71,166.67,3.46]
[1752479326058,179.18,166.73,166.65,3.46]
[1752479326259,3.57,166.69,166.65,3.46]
[1752479326650,3.17022047,166.72,166.65,3.46]
[1752479326851,6.74022047,166.72,166.65,3.46]
[1752479327050,3.17022047,166.72,166.65,3.46]
[1752479327260,3.57,166.69,166.68,3.46]
[1752479327460,3.57,166.69,166.63,3.46]
[1752479327864,3.57,166.67,166.63,3.46]
[1752479328063,3.57,166.66,166.63,3.46]
[1752479328259,6.74022047,166.66,166.59,3.17022047]
[1752479328459,6.74022047,166.66,166.6,3.46]
[1752479328662,6.74022047,166.66,166.63,5.9995]
[1752479328965,185.88022047,166.68,166.6,3.46]
[1752479329163,182.31022047,166.68,166.6,3.46]
[1752479329463,179.14,166.68,166.62,3.46]
[1752479330662,3.17022047,166.71,166.65,3.17022047]
[1752479330853,12.73722047,166.71,166.67,5.9982]
[1752479331056,9.567,166.71,166.68,3.46]
[1752479331261,3.57,166.71,166.68,3.46]
[1752479332063,5.9969,166.72,166.66,3.46]
[1752479332064,3.57,166.72,166.66,3.46]
[1752479332658,3.57,166.7,166.66,3.46]
[1752479332863,3.57,166.72,166.66,3.46]
[1752479333563,3.57,166.71,166.68,3.46]
[1752479333868,3.57,166.69,166.68,3.46]
[1752479334168,12.73742047,166.71,166.68,3.46]
[1752479334368,3.57,166.7,166.69,3.46]
[1752479335765,5.9968,166.72,166.69,3.46]
[1752479335972,3.17022047,166.73,166.71,3.46]
[1752479336169,6.74022047,166.73,166.72,3.46]
[1752479336364,12.73652047,166.73,166.72,3.46]
[1752479337266,6.74022047,166.73,166.72,3.46]
[1752479337567,3.57,166.72,166.71,3.46]
[1752479337963,697.4,166.74,166.67,3.17022047]
[1752479338171,182.69,166.74,166.72,3.46]
[1752479338368,3.57,166.73,166.72,3.46]
[1752479338964,179.12,166.74,166.72,3.46]
[1752479339173,3.57,166.73,166.72,3.46]
[1752479339964,179.12,166.74,166.72,3.46]
[1752479340271,182.69,166.74,166.68,3.46]
[1752479340670,3.57,166.73,166.72,3.46]
[1752479340869,3.57,166.73,166.59,16.99878616]
[1752479340870,3.57,166.73,166.69,3.46]
[1752479341066,5.9981,166.68,166.66,3.46]
[1752479341372,6.74022047,166.69,166.66,3.46]
[1752479341566,3.57,166.68,166.67,3.46]
[1752479342175,182.13022047,166.69,166.58,3.17022047]
[1752479342471,6.74022047,166.65,166.59,3.46]
[1752479342673,6.74022047,166.65,166.62,6.0002]
[1752479342975,3.57,166.65,166.63,3.46]
[1752479343162,9.5692,166.65,166.63,3.46]
[1752479343367,3.57,166.65,166.64,3.46]
[1752479344872,11.2819602,166.66,166.64,3.46]
[1752479345171,14.8519602,166.66,166.64,3.46]
[1752479345974,5.9992,166.65,166.64,3.46]
[1752479346168,182.37,166.69,166.64,3.46]
[1752479346466,3.41,166.68,166.64,3.46]
[1752479346672,9.4083,166.68,166.64,9.4593]
[1752479346874,9.4083,166.68,166.64,5.9993]
[1752479347074,178.96,166.69,166.67,5.9984]
[1752479347273,178.96,166.69,166.61,5.2831602]
[1752479347476,178.96,166.69,166.62,3.44]
[1752479347671,182.37,166.69,166.67,3.44]
[1752479347869,178.96,166.69,166.63,5.2831602]
[1752479348067,3.41,166.72,166.68,5.9978]
[1752479348376,178.9,166.73,166.66,3.44]
[1752479348770,178.9,166.73,166.7,5.9972]
[1752479348971,178.9,166.73,166.67,5.2831602]
[1752479349176,178.9,166.73,166.7,5.9971]
[1752479349377,3.41,166.72,166.65,3.44]
[1752479349674,3.41,166.71,166.65,3.44]
[1752479349874,3.41,166.73,166.67,3.44]
[1752479350271,3.41,166.75,166.69,3.44]
[1752479350469,184.8753,166.76,166.69,3.44]
[1752479350470,178.88,166.76,166.69,3.44]
[1752479350875,182.29,166.76,166.71,3.44]
[1752479351073,3.41,166.76,166.71,3.44]
[1752479351476,3.41,166.78,166.72,3.44]
[1752479351776,182.29,166.8,166.72,3.44]
[1752479352180,184.8741,166.8,166.76,5.995]
[1752479352377,178.88,166.8,166.74,3.44]
[1752479352677,3.41,166.79,166.72,3.44]
[1752479353178,178.88,166.8,166.74,3.44]
[1752479353783,178.88,166.8,166.77,5.9946]
[1752479354283,178.88,166.8,166.73,5.2831602]
[1752479354284,178.88,166.8,166.74,3.44]
[1752479354474,3.41,166.78,166.75,3.44]
[1752479354882,178.88,166.8,166.76,5.9951]
[1752479355078,3.41,166.79,166.76,5.9951]
[1752479355279,3.41,166.79,166.76,3.44]
[1752479355576,3.41,166.78,166.7,4.99648616]
[1752479355776,3.41,166.78,166.71,3.44]
[1752479355977,3.41,166.78,166.74,3.44]
[1752479356481,9.4047,166.78,166.74,3.44]
[1752479356674,5.9947,166.78,166.74,3.44]
[1752479356881,3.41,166.76,166.74,3.44]
[1752479358179,3.41,166.75,166.74,3.44]
[1752479359376,3.41,166.75,166.72,9.4365]
[1752479359587,3.41,166.75,166.69,5.2831602]
[1752479359885,3.41,166.75,166.74,5.9959]
[1752479360181,3.41,166.75,166.74,9.4359]
[1752479363782,3.41,166.75,166.74,3.44]
[1752479363986,3.1650235,166.76,166.71,3.44]
[1752479364280,3.1650235,166.76,166.7,3.44]
[1752479364485,3.41,166.76,166.74,9.4357]
[1752479364784,5.9944,166.79,166.75,3.44]
[1752479364981,6.5750235,166.78,166.75,9.4355]
[1752479365181,3.41,166.79,166.76,3.44]
[1752479365581,9.4044,166.79,166.76,3.44]
[1752479365776,3.41,166.78,166.76,3.44]
[1752479367089,3.41,166.77,166.75,3.44]
[1752479367387,3.41,166.77,166.74,9.4358]
[1752479367980,3.41,166.76,166.72,3.44]
[1752479368288,3.41,166.76,166.7,3.44]
[1752479369184,3.41,166.76,166.73,5.9963]
[1752479369386,3.41,166.76,166.73,9.4363]
[1752479369787,3.41,166.76,166.73,5.9963]
[1752479369986,3.41,166.81,166.74,3.44]
[1752479370185,3.41,166.79,166.74,3.44]
[1752479370380,5.9944,166.79,166.74,3.44]
[1752479370585,3.41,166.78,166.75,3.44]
[1752479370786,3.41,166.77,166.76,3.44]
[1752479373793,3.41,166.75,166.74,3.44]
[1752479374396,3.41,166.77,166.75,3.44]
[1752479375098,9.4049,166.77,166.75,3.44]
[1752479375302,5.9949,166.77,166.73,5.9962]
[1752479375504,3.41,166.76,166.74,5.9959]
[1752479375701,3.41,166.76,166.75,3.44]
[1752479377104,5.9955,166.76,166.73,3.48]
[1752479377309,3.66,166.74,166.73,3.48]
[1752479380307,5.9946,166.78,166.69,3.1650235]
[1752479380607,3.66,166.77,166.73,5.996]
[1752479380807,3.66,166.76,166.75,3.48]
[1752479381010,3.1650235,166.8,166.75,3.48]
[1752479381199,3.66,166.79,166.75,3.48]
[1752479381402,3.66,166.78,166.75,3.48]
[1752479382205,178.58,166.81,166.76,3.1650235]
[1752479382503,178.58,166.81,166.77,3.48]
[1752479382702,178.58,166.81,166.79,3.48]
[1752479383504,182.24,166.81,166.8,3.48]
[1752479387417,178.58,166.81,166.8,3.48]
[1752479388808,182.24,166.81,166.8,3.48]
[1752479390016,3.66,166.8,166.79,3.48]
[1752479391510,178.58,166.81,166.79,3.48]
[1752479391719,182.24,166.81,166.8,3.48]
[1752479392117,3.66,166.83,166.8,3.48]
[1752479392313,3.66,166.83,166.77,3.48]
[1752479393316,178.46,166.84,166.78,3.1650235]
[1752479393618,3.66,166.83,166.79,3.48]
[1752479394015,178.46,166.84,166.79,3.48]
[1752479394217,178.46,166.84,166.81,3.48]
[1752479394620,178.46,166.84,166.81,9.4731]
[1752479394819,178.46,166.84,166.82,3.48]
[1752479395011,178.46,166.84,166.79,3.48]
[1752479395214,3.66,166.86,166.81,3.48]
[1752479395821,3.66,166.87,166.84,3.48]
[1752479396320,3.66,166.89,166.84,3.48]
[1752479396624,3.66,166.88,166.84,3.48]
[1752479396915,3.66,166.88,166.85,3.48]
[1752479397221,3.66,166.87,166.86,3.48]
[1752479398116,5.991,166.88,166.86,3.48]
[1752479398320,3.66,166.88,166.87,3.48]
[1752479399112,521.2650235,166.9,166.85,3.48]
[1752479399313,3.66,166.89,166.86,3.48]
[1752479399618,3.66,166.87,166.86,3.48]
[1752479400012,518.1,166.9,166.86,3.48]
[1752479400220,3.66,166.89,166.86,3.48]
[1752479400722,178.44,166.91,166.86,3.48]
[1752479401023,3.1650235,166.9,166.83,3.48]
[1752479401224,3.66,166.89,166.83,3.48]
[1752479401423,9.6506,166.89,166.84,5.9923]
[1752479401620,3.1650235,166.9,166.85,3.48]
[1752479401828,3.66,166.9,166.85,3.48]
[1752479402428,3.66,166.89,166.85,5.9916]
[1752479402621,178.44,166.91,166.86,3.48]
[1752479402827,5.9908,166.89,166.87,3.48]
[1752479403128,3.66,166.88,166.87,3.48]
[1752479403526,178.44,166.91,166.88,3.48]
[1752479403828,3.66,166.94,166.89,3.48]
[1752479404023,3.66,166.94,166.88,3.1650235]
[1752479404329,3.66,166.94,166.89,3.48]
[1752479404530,3.66,166.93,166.9,3.48]
[1752479404716,3.66,166.93,166.87,3.48]
[1752479405127,3.1650235,166.94,166.82,4.99648616]
[1752479405423,3.66,166.91,166.86,3.48]
[1752479405623,5.9908,166.89,166.87,3.48]
[1752479405820,3.66,166.89,166.87,3.48]
[1752479406019,3.66,166.88,166.87,3.48]
[1752479406528,3.58,166.91,166.87,3.48]
[1752479406723,3.1650235,166.92,166.87,3.48]
[1752479406924,3.58,166.9,166.87,3.48]
[1752479407124,3.1650235,166.94,166.87,3.48]
[1752479407324,3.1650235,166.94,166.86,3.1650235]
[1752479407325,3.58,166.94,166.89,3.42]